[Event "Hunan Belt and Road Open 2019"]
[Site "Hunan"]
[Date "2019.07.30"]
[Round "2.28"]
[White "Batchuluun, Tsegmed"]
[Black "Xu, Minghui"]
[Result "1-0"]
[ECO "D52"]
[WhiteElo "2535"]
[BlackElo "2401"]
[Annotator "ChessBase"]
[PlyCount "93"]
[EventDate "2019.07.29"]
[EventType "swiss"]
[EventCountry "CHN"]
[SourceTitle "playchess.com"]
[Source "ChessBase"]
[SourceQuality "1"]
[TimeControl "5400+30"]

1. d4 {[%emt 0:00:08]} d5 {[%emt 0:00:00]} 2. c4 {[%emt 0:00:28]} e6 {[%emt 0:00:12]} 3. Nf3 {[%emt 0:00:00]} Nf6 4. Nc3 {[%emt 0:04:21]} c6 {[%emt 0:00:40]} 5. Bg5 {[%emt 0:00:34]} Nbd7 {[%emt 0:00:35]} 6. e3 {[%emt 0:00:00]} Qa5 {[%emt 0:03:40]} 7. Nd2 {[%emt 0:00:00]} Bb4 {[%emt 0:00:41]} 8. Qc2 {[%emt 0:00:00]} O-O {[%emt 0:01:51]} 9. Be2 {[%emt 0:00:00]} c5 {[%emt 0:00:21]} 10. O-O {[%emt 0:00:00]} cxd4 {[%emt 0:03:00]} 11. Nb3 {[%emt 0:00:00]} Qb6 {[%emt 0:15:46]} 12. Bxf6 {[%emt 0:00:09]} dxc3 {[%emt 0:04:29]} 13. Bxc3 {[%emt 0:05:44]} Bxc3 {[%emt 0:02:44]} 14. Qxc3 {[%emt 0:00:16]} dxc4 {[%emt 0:00:10]} 15. Nd2 {[%emt 0:14:28]} Qc5 {[%emt 0:42:31]} 16. Qxc4 {[%emt 0:30:23]} b6 {[%emt 0:02:22]} 17. Bf3 {[%emt 0:03:56]} Rb8 {[%emt 0:01:28]} 18. Rfc1 {[%emt 0:12:26]} Qxc4 {[%emt 0:06:26]} 19. Rxc4 {[%emt 0:05:08]} Rd8 {[%emt 0:00:43]} 20. Rc7 {[%emt 0:07:58]} Nc5 {[%emt 0:03:18]} 21. Ne4 {[%emt 0:00:21]} Rd7 {[%emt 0:00:43]} 22. Rxd7 {[%emt 0:00:45]} Bxd7 {[%emt 0:00:06]} 23. Nxc5 {[%emt 0:00:06]} bxc5 {[%emt 0:00:04]} 24. b3 {[%emt 0:00:25]} Kf8 {[%emt 0:00:54]} 25. Rc1 {[%emt 0:00:44]} Rc8 {[%emt 0:00:55]} 26. Kf1 {[%emt 0:01:42]} g5 {[%emt 0:00:28]} 27. Bb7 {[%emt 0:00:32]} Bb5+ {[%emt 0:00:59]} 28. Ke1 {[%emt 0:00:05]} Rc7 {[%emt 0:00:03]} 29. Be4 {[%emt 0:00:16]} f5 {[%emt 0:00:41]} 30. Bf3 {[%emt 0:00:09]} Ke7 {[%emt 0:00:10]} 31. Be2 {[%emt 0:00:07]} Bd7 {[%emt 0:01:12]} 32. f4 {[%emt 0:00:10]} h6 {[%emt 0:00:25]} 33. g3 {[%emt 0:02:47]} a5 {[%emt 0:02:02]} 34. Kd2 {[%emt 0:00:40]} e5 {[%emt 0:03:14]} 35. Kc3 {[%emt 0:02:03]} exf4 {[%emt 0:01:09]} 36. exf4 {[%emt 0:00:04]} Rb7 {[%emt 0:00:19]} 37. Re1 {[%emt 0:00:25]} Kd6 {[%emt 0:00:28]} 38. Rd1+ {[%emt 0:00:17]} Ke6 {[%emt 0:01:28]} 39. Bc4+ {[%emt 0:00:17]} Ke7 {[%emt 0:00:04]} 40. Rd5 {[%emt 0:01:04]} gxf4 {[%emt 0:00:31]} 41. gxf4 {[%emt 0:00:04]} Rc7 {[%emt 0:00:03]} 42. Bd3 {[%emt 0:00:27]} Be6 {[%emt 0:00:49]} 43. Re5 {[%emt 0:00:32]} Kf6 {[%emt 0:00:25]} 44. Bc4 {[%emt 0:00:34]} Bd7 {[%emt 0:00:10]} 45. Bd5 {[%emt 0:04:22]} Bc8 {[%emt 0:01:50]} 46. Re8 {[%emt 0:00:13]} Bd7 {[%emt 0:01:55]} 47. Ra8 {[%emt 0:00:12]} 1-0

[Event "Hunan Belt and Road Open 2019"]
[Site "Hunan"]
[Date "2019.07.30"]
[Round "2.29"]
[White "Chen, Qi b"]
[Black "Zhao, Zong-Yuan"]
[Result "0-1"]
[ECO "B66"]
[WhiteElo "2414"]
[BlackElo "2529"]
[Annotator "ChessBase"]
[PlyCount "46"]
[EventDate "2019.07.29"]
[EventType "swiss"]
[EventCountry "CHN"]
[SourceTitle "playchess.com"]
[Source "ChessBase"]
[SourceQuality "1"]
[TimeControl "5400+30"]

1. e4 {[%emt 0:00:00]} c5 {[%emt 0:00:08]} 2. Nf3 {[%emt 0:00:00]} d6 {[%emt 0:00:11]} 3. d4 {[%emt 0:01:34]} cxd4 {[%emt 0:00:11]} 4. Nxd4 {[%emt 0:00:04]} Nf6 {[%emt 0:00:07]} 5. Nc3 {[%emt 0:00:03]} Nc6 {[%emt 0:00:06]} 6. Bg5 {[%emt 0:02:46]} e6 {[%emt 0:00:16]} 7. Qd2 {[%emt 0:00:08]} a6 {[%emt 0:00:15]} 8. Nxc6 {[%emt 0:01:47]} bxc6 {[%emt 0:00:08]} 9. O-O-O {[%emt 0:00:09]} d5 {[%emt 0:01:10]} 10. Bc4 {[%emt 0:10:13]} Be7 {[%emt 0:11:33]} 11. Bxf6 {[%emt 0:25:09]} Bxf6 {[%emt 0:03:05]} 12. Bb3 {[%emt 0:06:58]} O-O {[%emt 0:01:40]} 13. Kb1 {[%emt 0:00:26]} Rb8 {[%emt 0:10:13]} 14. f4 {[%emt 0:04:45]} Qc7 {[%emt 0:05:52]} 15. Rhf1 {[%emt 0:06:57]} a5 {[%emt 0:10:23]} 16. g4 {[%emt 0:05:28]} Ba6 {[%emt 0:01:31]} 17. g5 {[%emt 0:00:50]} Bxc3 {[%emt 0:06:04]} 18. Qxc3 {[%emt 0:00:04]} Bxf1 {[%emt 0:00:09]} 19. Rxf1 {[%emt 0:00:04]} Rb4 {[%emt 0:07:58]} 20. exd5 {[%emt 0:07:03]} Rxf4 {[%emt 0:00:38]} 21. Rd1 {[%emt 0:00:11]} Rd8 {[%emt 0:02:34]} 22. a3 {[%emt 0:00:35]} a4 {[%emt 0:01:46]} 23. Ba2 {[%emt 0:00:07]} Qd6 {[%emt 0:00:57]} 0-1

[Event "Hunan Belt and Road Open 2019"]
[Site "Hunan"]
[Date "2019.07.30"]
[Round "2.30"]
[White "Liu, Yan"]
[Black "Gan-Erdene, Sugar"]
[Result "1-0"]
[ECO "E63"]
[WhiteElo "2516"]
[BlackElo "2408"]
[Annotator "ChessBase"]
[PlyCount "135"]
[EventDate "2019.07.29"]
[EventType "swiss"]
[EventCountry "CHN"]
[SourceTitle "playchess.com"]
[Source "ChessBase"]
[SourceQuality "1"]
[TimeControl "5400+30"]

1. Nf3 {[%emt 0:00:00]} Nf6 {[%emt 0:00:00]} 2. c4 {[%emt 0:00:48]} g6 {[%emt 0:00:00]} 3. g3 {[%emt 0:01:19]} Bg7 {[%emt 0:00:08]} 4. Bg2 {[%emt 0:00:24]} O-O {[%emt 0:00:20]} 5. d4 {[%emt 0:01:37]} d6 {[%emt 0:00:27]} 6. O-O {[%emt 0:00:41]} Nc6 {[%emt 0:00:49]} 7. Nc3 {[%emt 0:00:55]} a6 {[%emt 0:02:00]} 8. Bf4 {[%emt 0:09:08]} Bf5 {[%emt 0:07:54]} 9. d5 {[%emt 0:04:02]} Na5 {[%emt 0:04:03]} 10. b3 {[%emt 0:00:12]} c5 {[%emt 0:13:18]} 11. dxc6 {[%emt 0:00:30]} Nxc6 {[%emt 0:00:38]} 12. Rc1 {[%emt 0:00:38]} Qa5 {[%emt 0:04:35]} 13. Na4 {[%emt 0:19:34]} b5 {[%emt 0:21:25]} 14. Bd2 {[%emt 0:09:35]} Qd8 {[%emt 0:01:59]} 15. Nb2 {[%emt 0:07:25]} Rc8 {[%emt 0:04:33]} 16. Nd3 {[%emt 0:02:27]} bxc4 {[%emt 0:05:49]} 17. Rxc4 {[%emt 0:01:22]} e5 {[%emt 0:06:41]} 18. Nb4 {[%emt 0:07:02]} Nb8 {[%emt 0:02:49]} 19. Rxc8 {[%emt 0:01:38]} Qxc8 {[%emt 0:01:20]} 20. Bg5 {[%emt 0:00:11]} Qc5 {[%emt 0:02:31]} 21. Bxf6 {[%emt 0:01:09]} Bxf6 {[%emt 0:00:50]} 22. Nd5 {[%emt 0:00:11]} Bd8 {[%emt 0:04:35]} 23. Nd2 {[%emt 0:00:44]} Kg7 {[%emt 0:06:07]} 24. Ne3 {[%emt 0:12:26]} Be7 {[%emt 0:06:46]} 25. Nxf5+ {[%emt 0:00:49]} gxf5 {[%emt 0:00:05]} 26. Nc4 {[%emt 0:00:24]} f4 {[%emt 0:01:19]} 27. gxf4 {[%emt 0:02:58]} exf4 {[%emt 0:00:18]} 28. Qd2 {[%emt 0:01:31]} Qg5 {[%emt 0:00:35]} 29. Kh1 {[%emt 0:00:17]} Qf6 {[%emt 0:00:47]} 30. Nb6 {[%emt 0:05:33]} Qe5 {[%emt 0:00:42]} 31. Bf3 {[%emt 0:00:23]} Kh8 {[%emt 0:00:20]} 32. Rg1 {[%emt 0:03:51]} Rg8 {[%emt 0:00:35]} 33. Qc1 {[%emt 0:01:17]} Rxg1+ {[%emt 0:01:00]} 34. Kxg1 {[%emt 0:00:09]} Qc5 {[%emt 0:00:57]} 35. Qxc5 {[%emt 0:03:42]} dxc5 {[%emt 0:00:04]} 36. Kg2 {[%emt 0:00:11]} Kg7 {[%emt 0:00:25]} 37. Be4 {[%emt 0:00:25]} Bd6 {[%emt 0:00:38]} 38. Kf3 {[%emt 0:00:18]} a5 {[%emt 0:00:55]} 39. Nd5 {[%emt 0:02:27]} Nc6 {[%emt 0:00:16]} 40. Nxf4 {[%emt 0:00:19]} Nd4+ {[%emt 0:00:37]} 41. Ke3 {[%emt 0:00:16]} Bxf4+ {[%emt 0:00:30]} 42. Kxf4 {[%emt 0:00:03]} Nxe2+ {[%emt 0:00:07]} 43. Ke5 {[%emt 0:00:38]} Nc3 {[%emt 0:00:17]} 44. a4 {[%emt 0:01:49]} f6+ {[%emt 0:00:23]} 45. Kf5 {[%emt 0:00:17]} Kf7 {[%emt 0:01:17]} 46. Bd3 {[%emt 0:00:11]} Nd1 {[%emt 0:00:26]} 47. f3 {[%emt 0:00:36]} Nc3 {[%emt 0:00:29]} 48. h4 {[%emt 0:00:20]} Ke7 {[%emt 0:00:41]} 49. Kg4 {[%emt 0:00:17]} Kf7 {[%emt 0:00:36]} 50. Bxh7 {[%emt 0:00:28]} c4 {[%emt 0:00:27]} 51. bxc4 {[%emt 0:00:40]} Nxa4 {[%emt 0:00:00]} 52. Kf4 {[%emt 0:00:11]} Kg7 {[%emt 0:00:55]} 53. Bc2 {[%emt 0:00:39]} Nc5 {[%emt 0:00:08]} 54. Ke3 {[%emt 0:00:04]} a4 {[%emt 0:00:59]} 55. Kd4 {[%emt 0:00:14]} a3 {[%emt 0:00:06]} 56. Bb1 {[%emt 0:00:17]} Na6 {[%emt 0:00:43]} 57. Kc3 {[%emt 0:01:38]} Kh6 {[%emt 0:00:08]} 58. Kb3 {[%emt 0:00:12]} Kh5 {[%emt 0:00:19]} 59. Kxa3 {[%emt 0:00:05]} Kxh4 {[%emt 0:00:18]} 60. Ka4 {[%emt 0:00:18]} Kg3 {[%emt 0:00:24]} 61. Kb5 {[%emt 0:00:28]} Nc7+ {[%emt 0:00:40]} 62. Kb6 {[%emt 0:00:13]} Ne6 {[%emt 0:00:20]} 63. Be4 {[%emt 0:00:21]} Kf4 {[%emt 0:00:58]} 64. Bd5 {[%emt 0:00:28]} Nd4 {[%emt 0:00:43]} 65. c5 {[%emt 0:00:13]} Ke5 {[%emt 0:00:27]} 66. c6 {[%emt 0:00:37]} Kxd5 {[%emt 0:00:41]} 67. c7 {[%emt 0:00:04]} Nxf3 {[%emt 0:00:07]} 68. c8=Q {[%emt 0:00:04]} 1-0

[Event "Hunan Belt and Road Open 2019"]
[Site "Hunan"]
[Date "2019.07.30"]
[Round "2.32"]
[White "Yeoh, Li Tian"]
[Black "Liu, Guanchu"]
[Result "1-0"]
[ECO "B22"]
[WhiteElo "2528"]
[BlackElo "2449"]
[Annotator "ChessBase"]
[PlyCount "49"]
[EventDate "2019.07.29"]
[EventType "swiss"]
[EventCountry "CHN"]
[SourceTitle "playchess.com"]
[Source "ChessBase"]
[SourceQuality "1"]
[TimeControl "5400+30"]

1. e4 {[%emt 0:00:00]} c5 {[%emt 0:00:03]} 2. c3 {[%emt 0:00:00]} Nf6 {[%emt 0:00:17]} 3. e5 {[%emt 0:00:01]} Nd5 {[%emt 0:00:11]} 4. Nf3 {[%emt 0:00:07]} e6 {[%emt 0:00:11]} 5. Bc4 {[%emt 0:02:13]} d6 {[%emt 0:01:47]} 6. d4 {[%emt 0:03:53]} cxd4 {[%emt 0:00:56]} 7. cxd4 {[%emt 0:00:10]} Be7 {[%emt 0:01:33]} 8. O-O {[%emt 0:00:20]} O-O {[%emt 0:00:25]} 9. Qe2 {[%emt 0:01:09]} Nc6 {[%emt 0:01:21]} 10. Nc3 {[%emt 0:00:40]} Nxc3 {[%emt 0:02:07]} 11. bxc3 {[%emt 0:00:09]} dxe5 {[%emt 0:00:22]} 12. dxe5 {[%emt 0:00:10]} b6 {[%emt 0:00:29]} 13. Qe4 {[%emt 0:18:06]} Qc7 {[%emt 0:06:07]} 14. Bg5 {[%emt 0:01:23]} Bb7 {[%emt 0:12:47]} 15. Bd3 {[%emt 0:02:16]} g6 {[%emt 0:00:19]} 16. Qh4 {[%emt 0:00:21]} Rfe8 {[%emt 0:22:24]} 17. Rae1 {[%emt 0:17:20]} Bf8 {[%emt 0:08:37]} 18. Re3 {[%emt 0:06:37]} Ne7 {[%emt 0:05:17]} 19. Nd4 {[%emt 0:02:02]} Nf5 {[%emt 0:00:27]} 20. Bxf5 {[%emt 0:07:44]} exf5 {[%emt 0:00:08]} 21. Bf6 {[%emt 0:00:07]} h5 {[%emt 0:04:43]} 22. Rfe1 {[%emt 0:08:42]} Bh6 {[%emt 0:08:37]} 23. Nxf5 {[%emt 0:08:07]} Bxe3 {[%emt 0:04:46]} 24. Rxe3 {[%emt 0:00:06]} Qc6 {[%emt 0:03:43]} 25. f3 {[%emt 0:02:32]} 1-0

[Event "Hunan Belt and Road Open 2019"]
[Site "Hunan"]
[Date "2019.07.30"]
[Round "2.33"]
[White "Lei, Tingjie"]
[Black "Munkhgal, Gombosuren"]
[Result "1-0"]
[ECO "C11"]
[WhiteElo "2505"]
[BlackElo "2442"]
[Annotator "ChessBase"]
[PlyCount "83"]
[EventDate "2019.07.29"]
[EventType "swiss"]
[EventCountry "CHN"]
[SourceTitle "playchess.com"]
[Source "ChessBase"]
[SourceQuality "1"]
[TimeControl "5400+30"]

1. e4 {[%emt 0:00:00]} e6 {[%emt 0:00:00]} 2. d4 {[%emt 0:00:00]} d5 {[%emt 0:00:00]} 3. Nc3 {[%emt 0:00:00]} Nf6 {[%emt 0:00:15]} 4. e5 {[%emt 0:00:30]} Nfd7 {[%emt 0:00:06]} 5. f4 {[%emt 0:00:12]} c5 {[%emt 0:00:08]} 6. Nf3 {[%emt 0:00:03]} Nc6 {[%emt 0:00:06]} 7. Be3 {[%emt 0:00:06]} a6 {[%emt 0:00:07]} 8. Qd2 {[%emt 0:00:09]} b5 {[%emt 0:00:21]} 9. Bd3 {[%emt 0:00:18]} Qb6 {[%emt 0:03:54]} 10. Qf2 {[%emt 0:00:11]} Bb7 {[%emt 0:02:47]} 11. O-O {[%emt 0:02:25]} cxd4 {[%emt 0:00:31]} 12. Nxd4 {[%emt 0:00:13]} Nxd4 {[%emt 0:00:06]} 13. Bxd4 {[%emt 0:00:11]} Qxd4 {[%emt 0:00:33]} 14. Qxd4 {[%emt 0:00:28]} Bc5 {[%emt 0:00:12]} 15. Ne2 {[%emt 0:00:29]} Bxd4+ {[%emt 0:01:28]} 16. Nxd4 {[%emt 0:00:05]} g6 {[%emt 0:00:35]} 17. a4 {[%emt 0:10:02]} b4 {[%emt 0:04:00]} 18. a5 {[%emt 0:00:11]} Nc5 {[%emt 0:00:18]} 19. Kf2 {[%emt 0:03:27]} Ke7 {[%emt 0:08:20]} 20. Ke3 {[%emt 0:00:52]} Rac8 {[%emt 0:01:01]} 21. g3 {[%emt 0:00:54]} Rc7 {[%emt 0:02:34]} 22. Nb3 {[%emt 0:10:33]} Rb8 {[%emt 0:06:26]} 23. Nxc5 {[%emt 0:10:18]} Rxc5 {[%emt 0:00:06]} 24. Kd4 {[%emt 0:00:06]} Rc7 {[%emt 0:02:27]} 25. g4 {[%emt 0:01:30]} Bc8 {[%emt 0:02:21]} 26. Rf2 {[%emt 0:06:23]} h6 {[%emt 0:27:14]} 27. Raf1 {[%emt 0:21:43]} b3 {[%emt 0:04:53]} 28. c3 {[%emt 0:00:21]} Bd7 {[%emt 0:00:04]} 29. f5 {[%emt 0:05:06]} gxf5 {[%emt 0:03:57]} 30. gxf5 {[%emt 0:00:03]} Rg8 {[%emt 0:08:22]} 31. fxe6 {[%emt 0:11:51]} Bxe6 {[%emt 0:01:02]} 32. Bf5 {[%emt 0:00:11]} Rg7 {[%emt 0:15:38]} 33. Bxe6 {[%emt 0:00:05]} fxe6 {[%emt 0:00:04]} 34. Rf8 {[%emt 0:00:15]} Rg4+ {[%emt 0:00:33]} 35. Kd3 {[%emt 0:00:21]} Kd7 {[%emt 0:00:13]} 36. Rb8 {[%emt 0:05:38]} Ke7 {[%emt 0:00:11]} 37. Rh8 {[%emt 0:03:31]} Kd7 {[%emt 0:01:09]} 38. Rxh6 {[%emt 0:04:16]} Rg7 {[%emt 0:03:16]} 39. Rf8 {[%emt 0:01:19]} Rb7 {[%emt 0:03:40]} 40. Ra8 {[%emt 0:00:17]} Rg2 {[%emt 0:00:21]} 41. Rh7+ {[%emt 0:00:20]} Kc6 {[%emt 0:00:07]} 42. Rc8+ {[%emt 0:00:23]} 1-0

[Event "Hunan Belt and Road Open 2019"]
[Site "Hunan"]
[Date "2019.07.30"]
[Round "2.34"]
[White "Fang, Yuxiang"]
[Black "Wang, Yiye"]
[Result "1/2-1/2"]
[ECO "D00"]
[WhiteElo "2476"]
[BlackElo "2440"]
[Annotator "ChessBase"]
[PlyCount "40"]
[EventDate "2019.07.29"]
[EventType "swiss"]
[EventCountry "CHN"]
[SourceTitle "playchess.com"]
[Source "ChessBase"]
[SourceQuality "1"]
[TimeControl "5400+30"]

1. d4 {[%emt 0:02:21]} Nf6 {[%emt 0:00:00]} 2. Bf4 {[%emt 0:04:45]} d5 {[%emt 0:04:17]} 3. Nc3 {[%emt 0:06:01]} e6 {[%emt 0:03:50]} 4. e3 {[%emt 0:00:16]} Bd6 {[%emt 0:01:37]} 5. Bg3 {[%emt 0:02:47]} a6 {[%emt 0:03:52]} 6. Nf3 {[%emt 0:04:59]} b6 {[%emt 0:00:22]} 7. Bd3 {[%emt 0:03:11]} Bb7 {[%emt 0:00:16]} 8. O-O {[%emt 0:00:07]} O-O {[%emt 0:05:28]} 9. Re1 {[%emt 0:07:33]} Nbd7 {[%emt 0:29:15]} 10. e4 {[%emt 0:05:36]} dxe4 {[%emt 0:02:22]} 11. Nxe4 {[%emt 0:00:07]} Nxe4 {[%emt 0:00:25]} 12. Bxe4 {[%emt 0:00:07]} Bxe4 {[%emt 0:00:23]} 13. Rxe4 {[%emt 0:00:07]} Nf6 {[%emt 0:00:10]} 14. Re2 {[%emt 0:02:23]} Bxg3 {[%emt 0:02:51]} 15. hxg3 {[%emt 0:00:04]} Qd6 {[%emt 0:00:05]} 16. c3 {[%emt 0:01:10]} Rfd8 {[%emt 0:00:15]} 17. Qb3 {[%emt 0:01:18]} Qd5 {[%emt 0:04:12]} 18. Re5 {[%emt 0:01:30]} Qxb3 {[%emt 0:01:24]} 19. axb3 {[%emt 0:00:03]} a5 {[%emt 0:00:12]} 20. Kf1 {[%emt 0:00:34]} Kf8 {[%emt 0:00:31]} 1/2-1/2

[Event "Hunan Belt and Road Open 2019"]
[Site "Hunan"]
[Date "2019.07.30"]
[Round "2.35"]
[White "Taher, Yoseph Theolifus"]
[Black "Setyaki, Azarya Jodi"]
[Result "1/2-1/2"]
[ECO "D85"]
[WhiteElo "2460"]
[BlackElo "2409"]
[Annotator "ChessBase"]
[PlyCount "95"]
[EventDate "2019.07.29"]
[EventType "swiss"]
[EventCountry "CHN"]
[SourceTitle "playchess.com"]
[Source "ChessBase"]
[SourceQuality "1"]
[TimeControl "5400+30"]

1. c4 {[%emt 0:00:00]} g6 {[%emt 0:00:00]} 2. d4 {[%emt 0:00:12]} Nf6 {[%emt 0:00:00]} 3. Nc3 {[%emt 0:00:10]} d5 {[%emt 0:00:04]} 4. cxd5 {[%emt 0:01:35]} Nxd5 {[%emt 0:00:09]} 5. e4 {[%emt 0:00:20]} Nxc3 {[%emt 0:00:06]} 6. bxc3 {[%emt 0:00:03]} Bg7 {[%emt 0:00:05]} 7. Be3 {[%emt 0:00:03]} c5 {[%emt 0:00:13]} 8. Qd2 {[%emt 0:00:07]} Qa5 {[%emt 0:00:23]} 9. Nf3 {[%emt 0:00:40]} O-O {[%emt 0:00:06]} 10. Rc1 {[%emt 0:00:12]} Bg4 {[%emt 0:00:20]} 11. Be2 {[%emt 0:00:48]} Nd7 {[%emt 0:01:37]} 12. h3 {[%emt 0:06:10]} Bxf3 {[%emt 0:02:40]} 13. Bxf3 {[%emt 0:00:21]} Nb6 {[%emt 0:02:36]} 14. d5 {[%emt 0:09:11]} Nc4 {[%emt 0:01:49]} 15. Qd3 {[%emt 0:00:13]} Ne5 {[%emt 0:05:55]} 16. Qd2 {[%emt 0:00:37]} Nxf3+ {[%emt 0:04:41]} 17. gxf3 {[%emt 0:00:04]} f5 {[%emt 0:00:15]} 18. c4 {[%emt 0:01:07]} Qa3 {[%emt 0:00:27]} 19. Ke2 {[%emt 0:09:19]} Rf7 {[%emt 0:08:15]} 20. Qc2 {[%emt 0:19:39]} fxe4 {[%emt 0:02:43]} 21. fxe4 {[%emt 0:01:07]} Bd4 {[%emt 0:00:56]} 22. Qb3 {[%emt 0:02:15]} Qa6 {[%emt 0:02:32]} 23. Rhf1 {[%emt 0:08:16]} Raf8 {[%emt 0:03:24]} 24. f4 {[%emt 0:05:22]} Bxe3 {[%emt 0:01:25]} 25. Kxe3 {[%emt 0:00:54]} e5 {[%emt 0:16:12]} 26. f5 {[%emt 0:11:03]} gxf5 {[%emt 0:00:36]} 27. Ke2 {[%emt 0:01:59]} f4 {[%emt 0:02:52]} 28. Rg1+ {[%emt 0:00:52]} Kh8 {[%emt 0:00:54]} 29. Qb2 {[%emt 0:03:56]} Qf6 {[%emt 0:01:13]} 30. Kd3 {[%emt 0:00:35]} Rg7 {[%emt 0:01:42]} 31. Qf2 {[%emt 0:01:52]} Rxg1 {[%emt 0:06:41]} 32. Rxg1 {[%emt 0:00:16]} b6 {[%emt 0:00:04]} 33. Qf3 {[%emt 0:00:21]} a6 {[%emt 0:01:48]} 34. a4 {[%emt 0:01:42]} b5 {[%emt 0:04:33]} 35. axb5 {[%emt 0:00:05]} axb5 {[%emt 0:00:03]} 36. cxb5 {[%emt 0:00:13]} Qb6 {[%emt 0:04:51]} 37. Qg4 {[%emt 0:01:16]} Qxb5+ {[%emt 0:01:11]} 38. Kc2 {[%emt 0:00:15]} Qa4+ {[%emt 0:02:57]} 39. Kc1 {[%emt 0:00:31]} Qc4+ {[%emt 0:03:59]} 40. Kd1 {[%emt 0:00:11]} Qb3+ {[%emt 0:01:36]} 41. Kc1 {[%emt 0:00:05]} Qa3+ {[%emt 0:01:38]} 42. Kc2 {[%emt 0:00:11]} Qa2+ {[%emt 0:02:05]} 43. Kc1 {[%emt 0:00:07]} Qc4+ {[%emt 0:00:05]} 44. Kd1 {[%emt 0:00:08]} Qa4+ {[%emt 0:01:09]} 45. Kc1 {[%emt 0:00:14]} Qa7 {[%emt 0:02:28]} 46. Qg5 {[%emt 0:00:06]} Qa1+ {[%emt 0:00:43]} 47. Kc2 {[%emt 0:00:07]} Qa2+ {[%emt 0:00:06]} 48. Kc1 {[%emt 0:00:43]} 1/2-1/2

[Event "Hunan Belt and Road Open 2019"]
[Site "Hunan"]
[Date "2019.07.30"]
[Round "2.36"]
[White "Lin, Yi"]
[Black "Li, Shilong"]
[Result "1-0"]
[ECO "E90"]
[WhiteElo "2406"]
[BlackElo "2457"]
[Annotator "ChessBase"]
[PlyCount "83"]
[EventDate "2019.07.29"]
[EventType "swiss"]
[EventCountry "CHN"]
[SourceTitle "playchess.com"]
[Source "ChessBase"]
[SourceQuality "1"]
[TimeControl "5400+30"]

1. d4 {[%emt 0:00:00]} Nf6 {[%emt 0:00:00]} 2. c4 {[%emt 0:00:00]} g6 {[%emt 0:00:21]} 3. Nc3 {[%emt 0:00:00]} Bg7 {[%emt 0:00:05]} 4. e4 {[%emt 0:00:01]} O-O {[%emt 0:00:07]} 5. Nf3 {[%emt 0:00:20]} d6 {[%emt 0:00:06]} 6. h3 {[%emt 0:00:07]} e5 {[%emt 0:01:20]} 7. d5 {[%emt 0:00:07]} a5 {[%emt 0:02:57]} 8. g4 {[%emt 0:00:10]} Na6 {[%emt 0:00:12]} 9. Be3 {[%emt 0:00:10]} Nc5 {[%emt 0:09:05]} 10. Nd2 {[%emt 0:00:24]} Ne8 {[%emt 0:08:08]} 11. h4 {[%emt 0:03:36]} f5 {[%emt 0:01:37]} 12. g5 {[%emt 0:00:12]} Rf7 {[%emt 0:11:54]} 13. Be2 {[%emt 0:09:36]} Qe7 {[%emt 0:31:45]} 14. Qc2 {[%emt 0:07:46]} Bf8 {[%emt 0:26:02]} 15. O-O-O {[%emt 0:06:23]} Na6 {[%emt 0:01:08]} 16. exf5 {[%emt 0:02:19]} Bxf5 {[%emt 0:00:56]} 17. Nde4 {[%emt 0:00:20]} Nb4 {[%emt 0:00:17]} 18. Qb3 {[%emt 0:00:20]} c5 {[%emt 0:00:06]} 19. f3 {[%emt 0:05:50]} Qd7 {[%emt 0:02:38]} 20. Na4 {[%emt 0:06:56]} Rb8 {[%emt 0:00:39]} 21. a3 {[%emt 0:01:09]} Na6 {[%emt 0:00:02]} 22. Nac3 {[%emt 0:00:17]} Nac7 {[%emt 0:00:14]} 23. h5 {[%emt 0:01:34]} b6 {[%emt 0:00:40]} 24. Ng3 {[%emt 0:04:50]} Ng7 {[%emt 0:00:29]} 25. h6 {[%emt 0:00:47]} Nge8 {[%emt 0:00:31]} 26. Nxf5 {[%emt 0:00:50]} Rxf5 {[%emt 0:00:27]} 27. a4 {[%emt 0:02:05]} Na6 {[%emt 0:00:44]} 28. Ne4 {[%emt 0:00:15]} Nb4 {[%emt 0:00:06]} 29. Bd2 {[%emt 0:00:39]} Qf7 {[%emt 0:01:18]} 30. f4 {[%emt 0:05:15]} exf4 {[%emt 0:00:31]} 31. Bg4 {[%emt 0:00:30]} Be7 {[%emt 0:00:21]} 32. Rhf1 {[%emt 0:01:35]} Nc7 {[%emt 0:00:25]} 33. Bxf5 {[%emt 0:00:20]} gxf5 {[%emt 0:00:21]} 34. Rxf4 {[%emt 0:01:23]} Qg6 {[%emt 0:00:06]} 35. Nf6+ {[%emt 0:01:04]} Bxf6 {[%emt 0:00:51]} 36. gxf6 {[%emt 0:00:01]} Re8 {[%emt 0:00:44]} 37. Qh3 {[%emt 0:03:45]} Kf7 {[%emt 0:00:23]} 38. Bxb4 {[%emt 0:01:54]} cxb4 {[%emt 0:00:21]} 39. Qxf5 {[%emt 0:00:12]} Qxf5 {[%emt 0:00:29]} 40. Rxf5 {[%emt 0:00:02]} Re4 {[%emt 0:00:24]} 41. Rg1 {[%emt 0:00:23]} Rxc4+ {[%emt 0:00:52]} 42. Kb1 {[%emt 0:00:06]} 1-0